Cogmind - Beta 17 @@@ ROGUE MODE // 2026.07.16 @ 13:54:22 Player: lxealomych Result: Self-destructed Performance ------------- Evolutions (4) 2000 Regions Visited (8) 1600 Robots Destroyed (109) 545 Value Destroyed (2801) 2801 Prototype IDs (6) 120 Alien Tech Used (0) 0 Bonus (300) 300 TOTAL SCORE: 7366 Bonus ------- Aligned with FarCom 300 Cogmind --------- Core Integrity 621/850 Matter 142/300 Energy 65/100 System Corruption 0% Temperature Cool (0) Movement Core (50) Location -6/Factory Parts ------- > --- POWER (2) -------- (None) > --- PROPULSION (5) --- (None) > --- UTILITY (6) ------ Advanced Terrain Scan Processor Core Analyzer ECM Suite Hacking Suite > --- WEAPON (2) ------- (None) > --- INVENTORY (5) ---- Light Nuclear Core Micro Nuclear Core YOLO Cannon Field Lobotomy Kit (5) Peak State ------------ > --- POWER ------------ Deuterium Engine > --- PROPULSION ------- Armored Huge Wheel Armored Huge Wheel > --- UTILITY ---------- Improved Heat Sink Large Storage Unit Reaction Control System Improved Medium Armor Plating > --- WEAPON ----------- Advanced Assault Cannon Blade Saw > --- INVENTORY -------- Light Nuclear Core Cesium-ion Thruster Surge Thruster Surge Thruster Surge Thruster Surge Thruster Seismic Detector ECM Suite Improved Propulsion Shielding Improved Light Armor Plating Hacking Suite YOLO Cannon Field Lobotomy Kit [Rating: 42] Favorites ----------- Power Cooled Ion Engine Engine Cooled Ion Engine Power Core Light Nuclear Core Propulsion Light Treads Treads Light Treads Leg Flexi-carbon Leg Wheel Armored Huge Wheel Hover Unit Gravmag System Flight Unit Surge Thruster Utility Large Storage Unit Device ECM Suite Storage Large Storage Unit Processor Visual Processing Unit Hackware Hacking Suite Protection Hardened Light Armor Plating Weapon Heavy Ion Cannon Energy Gun Particle Gun Energy Cannon Heavy Ion Cannon Ballistic Gun Autogun Ballistic Cannon Advanced Assault Cannon Special Weapon Field Lobotomy Kit Slashing Weapon Blade Saw Piercing Weapon Spear Build | -11 -10 -9 -9 -9 -8 -8 -7 -6 ------- Run | Yrd Mat Mat Min Exi Min Mat Fac Fac Slots Evolved 8 | . . 2 . . . 2 2 2 Power 1 | . . . . . . . . 1 Propulsion 3 | . . 1 . . . 1 1 . Utility 4 | . . 1 . . . 1 1 1 Weapon . | . . . . . . . . . Parts Attached 91 | 6 9 22 2 4 . 21 21 6 Power 18 | 1 4 2 . 1 . 4 5 1 Engine 12 | 1 4 2 . 1 . 1 2 1 Core 6 | . . . . . . 3 3 . Reactor . | . . . . . . . . . Propulsion 35 | 2 1 12 . . . 9 8 3 Treads 18 | 2 1 11 . . . 4 . . Leg 1 | . . . . . . . . 1 Wheel 4 | . . . . . . 4 . . Hover 2 | . . . . . . . 1 1 Flight 10 | . . 1 . . . 1 7 1 Utility 18 | 1 2 2 . . . 4 7 2 Device 6 | . . 1 . . . 2 2 1 Storage 2 | 1 1 . . . . . . . Processor 4 | . 1 1 . . . . 1 1 Hackware 2 | . . . . . . . 2 . Protection 4 | . . . . . . 2 2 . Artifact . | . . . . . . . . . Weapon 20 | 2 2 6 2 3 . 4 1 . Energy Gun 4 | 1 2 . . . . 1 . . Energy Cannon 4 | . . 1 1 2 . . . . Ballistic Gun 6 | 1 . 4 1 . . . . . Ballistic Cannon 3 | . . 1 . . . 2 . . Launcher . | . . . . . . . . . Special Weapon 1 | . . . . 1 . . . . Impact Weapon . | . . . . . . . . . Slashing Weapon 1 | . . . . . . 1 . . Piercing Weapon 1 | . . . . . . . 1 . Special Melee Weapon . | . . . . . . . . . Unidentified Prototypes 6 | . . 2 . 3 . 1 . . Parts Lost 30 | . 4 2 . . . 8 11 5 Power 5 | . 1 . . . . 1 2 1 Propulsion 17 | . 1 1 . . . 4 7 4 Utility 3 | . . . . . . 1 2 . Weapon 5 | . 2 1 . . . 2 . . Highest Loss Streak 3 | . 1 1 . . . 2 3 2 To Critical Strikes . | . . . . . . . . . Average Backups 10 | 3 9 14 15 14 14 13 4 3 Power 1 | . 1 2 2 1 1 1 . 1 Propulsion 3 | 2 4 5 6 5 5 5 . . Utility 3 | . 3 5 6 6 6 5 . . Weapon 1 | . 1 1 1 1 1 1 1 1 Tool/Special . | . . . . . . . . . Unused Backups 20 | . 6 8 . 2 1 1 1 1 Power 3 | . . 1 . . . 1 . 1 Propulsion 9 | . 4 4 . 1 . . . . Utility 5 | . 1 2 . . 1 . 1 . Weapon 3 | . 1 1 . 1 . . . . Tool/Special . | . . . . . . . . . Average Slot Usage (%) 83 | . 94 94 99 99 100 76 70 39 Engine 8 | . 13 11 11 11 11 2 2 4 Core 1 | . . . . . . 6 3 . Treads 19 | . 27 30 33 33 33 15 . . Flight 4 | . . . . . . 1 23 . Device 4 | . . 4 . . . 2 14 6 Storage 8 | . 14 11 11 11 11 9 . . Processor 12 | . 9 15 22 22 22 13 . 8 Hackware 1 | . . . . . . . 7 6 Protection 1 | . . . . . . 6 2 . Energy Gun 4 | . 18 5 . . . . . . Energy Cannon 4 | . . 5 11 10 11 7 . . Ballistic Gun 6 | . 8 10 10 10 11 3 . . Ballistic Cannon 1 | . . . . . . 1 5 . Slashing Weapon 1 | . . . . . . . 6 . Peak Build Rating 42 | 6 11 20 21 35 23 39 42 27 Average Rating 20 | 4 9 15 20 21 23 26 29 22 On Entrance 18 | . 6 11 20 21 23 23 38 21 Avg Prop Armor Cover (%) 3 | . . . . . . 2 . 6 Naked Turns . | . . . . . . . . . Heaviest Build 46 | 12 31 37 39 39 39 44 46 9 Greatest Support 80 | 40 40 60 60 60 60 80 56 20 Greatest Overweight (x) 13 | 1 9 . . . . 13 8 2 Average Overweight (x) . | . . . . . . . . . Largest Inventory Capacity 15 | 8 15 15 15 15 15 15 15 5 Average Capacity 11 | 6 11 15 15 15 15 15 5 5 Most Carried 15 | 6 14 15 15 15 15 15 14 5 Average Carried 11 | 4 9 14 15 14 14 14 4 4 Final Capacity 15 | 8 15 15 15 15 15 15 5 5 Final Carried 15 | 6 13 15 15 15 15 14 4 5 Class Distribution -------------------- 74% | Mutant 14% | Scavenger-Mutant 6% | Sprinter 3% | Scavenger-Sprinter Dominant Class ---------------- Mutant | -10/Materials Scavenger-Mutant | -9/Materials Mutant | -9/Mines Mutant | -9/Exiles Mutant | -8/Mines Mutant | -8/Materials Sprinter | -7/Factory Mutant | -6/Factory Resources | -11 -10 -9 -9 -9 -8 -8 -7 -6 ----------- Run | Yrd Mat Mat Min Exi Min Mat Fac Fac Matter Collected 2092 | 199 279 442 137 . 55 479 389 112 Remotely . | . . . . . . . . . Salvage Created 3828 | . 682 896 155 . . 1271 513 311 Parts 229 | . 47 65 14 . . 64 26 13 Haulers Intercepted 9 | . 1 4 . . . 3 . 1 Recyclers Shooed 1 | . . . . . . 1 . . Parts Field Recycled . | . . . . . . . . . Retrieved Matter . | . . . . . . . . . Parts Self-Destructed . | . . . . . . . . . Prevented . | . . . . . . . . . Parts Restored . | . . . . . . . . . Kills | -11 -10 -9 -9 -9 -8 -8 -7 -6 ------- Run | Yrd Mat Mat Min Exi Min Mat Fac Fac Combat Hostiles Destroyed 65 | . 13 12 6 . . 22 10 2 Melee 7 | . . . . . . . 5 2 Guns 31 | . 13 8 1 . . 9 . . Cannons 24 | . . 4 2 . . 13 5 . AOE 3 | . . . 3 . . . . . Classes Destroyed 14 | . 6 3 1 . . 2 2 . Worker 10 | . 6 1 . . . 3 . . Builder 5 | . . 2 . . . 1 1 1 Tunneler 1 | . . . 1 . . . . . Hauler 9 | . 1 4 . . . 3 . 1 Recycler 3 | . . 1 . . . 1 1 . Mechanic 2 | . . . . . . . 1 1 Operator 4 | . 2 . . . . 1 1 . Watcher 10 | . 3 2 . . . 4 1 . Swarmer 16 | . 3 3 4 . . 3 3 . Cutter 3 | . . . . . . 3 . . Grunt 30 | . 10 2 . . . 12 5 1 Sentry 12 | . . 7 2 . . 3 . . Hunter 1 | . . . . . . 1 . . Programmer 3 | . . . . . . . 2 1 Best Kill Streak 5 | . 4 4 4 . . 4 5 2 Combat Bots Only 4 | . 3 3 4 . . 3 2 1 Max Kills in Single Turn 3 | . 1 1 3 . . 1 1 1 Gunslinging . | . . . . . . . . . Exploded 3 | . . . 3 . . . . . Melee 1 | . . . . . . . 1 1 Uniques/NPCs Destroyed . | . . . . . . . . . Combat | -11 -10 -9 -9 -9 -8 -8 -7 -6 -------- Run | Yrd Mat Mat Min Exi Min Mat Fac Fac Hostile Shots Fired 566 | . 86 99 25 . . 156 136 64 Missed 192 | . 29 25 12 . . 50 52 24 Hits 374 | . 57 74 13 . . 106 84 40 Melee 3 | . . . . . . 3 . . Projectile 371 | . 57 74 13 . . 103 84 40 AOE 3 | . . . . . . 3 . . Critical Strikes 15 | . 2 4 . . . 6 3 . Damage Taken 5851 | . 755 1020 227 . . 2113 1173 563 Core 1446 | . 142 214 22 . . 437 402 229 Absorbed by Shields 25 | . . . . . . . 25 . Core Remaining (%) 49 | 100 43 . . . 41 20 42 . Volleys Fired 321 | . 74 72 11 . . 139 25 . Largest 2 | . 2 2 2 . . 2 1 . Hottest 130 | . 130 98 98 . . 126 40 . Shots Fired 522 | . 129 138 22 . . 208 25 . Gun 304 | . 129 96 11 . . 68 . . Cannon 218 | . . 42 11 . . 140 25 . Launcher . | . . . . . . . . . Special . | . . . . . . . . . Kinetic 248 | . 51 72 11 . . 89 25 . Thermal 274 | . 78 66 11 . . 119 . . Explosive . | . . . . . . . . . Electromagnetic . | . . . . . . . . . Robot Hit Streak 16 | . 10 13 9 . . 16 10 . Robot Miss Streak 6 | . 5 4 4 . . 4 6 . Penetration Max . | . . . . . . . . . Secondary Targets . | . . . . . . . . . Shots Hit Robots 391 | . 81 95 13 . . 148 41 13 Core Hits 147 | . 37 32 8 . . 46 18 6 Critical Kills . | . . . . . . . . . Critical Parts Destroyed 1 | . 1 . . . . . . . Critical Strikes 15 | . 4 . . . . 3 7 1 Burn 4 | . 3 . . . . 1 . . Destroy 1 | . 1 . . . . . . . Blast 2 | . . . . . . 2 . . Sever 7 | . . . . . . . 7 . Impale 1 | . . . . . . . . 1 Melee Attacks 73 | . . . . . . 3 49 21 Impact . | . . . . . . . . . Slashing 46 | . . . . . . 3 43 . Piercing 27 | . . . . . . . 6 21 Sneak Attacks 13 | . . . . . . . 8 5 Combat Hostiles 3 | . . . . . . . 2 1 Follow-up Attacks . | . . . . . . . . . Damage Inflicted 8538 | . 1166 1748 459 . . 3526 1134 505 Guns 3058 | . 1162 1016 85 . . 795 . . Cannons 4028 | . . 725 178 . . 2712 413 . Explosions 196 | . . . 196 . . . . . Melee 1226 | . . . . . . . 721 505 Ramming 30 | . 4 7 . . . 19 . . Kinetic 2983 | . 421 778 85 . . 1286 413 . Thermal 4299 | . 741 963 374 . . 2221 . . Explosive . | . . . . . . . . . Electromagnetic . | . . . . . . . . . Impact . | . . . . . . . . . Slashing 587 | . . . . . . . 587 . Piercing 639 | . . . . . . . 134 505 Highest Corruption 5 | . . 5 5 5 5 2 2 . Average Corruption 4 | . . 4 5 5 5 2 1 . Corruption Purged . | . . . . . . . . . Corruption Blocked . | . . . . . . . . . Effects 69 | . . 31 19 5 8 4 2 . Message Errors 17 | . . 9 4 2 1 . 1 . Matter Fused 11 | . . 3 6 1 . 1 . . Heat Flow Errors 8 | . . 2 1 1 3 1 . . Energy Discharges 9 | . . 3 4 . 1 1 . . Parts Fused 2 | . . 2 . . . . . . Data Loss (minor) 12 | . . 6 2 1 2 1 . . Data Loss (major) 4 | . . 1 1 . 1 . 1 . Misfires 2 | . . 2 . . . . . . Alerts 2 | . . 1 1 . . . . . Weapon Failures 2 | . . 2 . . . . . . Overload Shots . | . . . . . . . . . Overflow Damage 266 | . . 5 33 . . 95 82 51 Projectiles 120 | . . 5 20 . . 95 . . Explosions 13 | . . . 13 . . . . . Melee 133 | . . . . . . . 82 51 Knockbacks 5 | . . . . . . 4 1 . Impact . | . . . . . . . . . Kinetic 5 | . . . . . . 4 1 . Secondary . | . . . . . . . . . Self-Inflicted Damage . | . . . . . . . . . Shots . | . . . . . . . . . Rammed 5 | . . 2 . . . 3 . . Targets Rammed 6 | . 1 2 . . . 3 . . Kicked . | . . . . . . . . . Crushed 1 | . 1 . . . . . . . Highest Temperature 715 | . 432 248 170 203 262 715 57 . Average Temperature 98 | . 82 56 63 110 113 158 8 . Received Heat Transfer 2007 | . 333 411 36 . . 702 375 150 Effects 22 | . 4 1 . . . 17 . . Shutdowns 4 | . . . . . . 4 . . Energy Bleed 4 | . . 1 . . . 3 . . Matter Decay 2 | . . . . . . 2 . . Short Circuit 3 | . . . . . . 3 . . Damage (major) 7 | . 4 . . . . 3 . . Damage (core) 2 | . . . . . . 2 . . Siege Activations . | . . . . . . . . . Martial Activations . | . . . . . . . . . Shielding Activations . | . . . . . . . . . Robots Disrupted . | . . . . . . . . . Combat Hostiles . | . . . . . . . . . Robots Corrupted . | . . . . . . . . . Combat Hostiles . | . . . . . . . . . Parts Fried . | . . . . . . . . . Impact Corruptions . | . . . . . . . . . Robots Melted . | . . . . . . . . . Combat Hostiles . | . . . . . . . . . Parts Melted 9 | . 3 1 1 . . 4 . . Heat Transferred 7502 | . 2072 1665 509 . . 3256 . . Parts Sabotaged . | . . . . . . . . . Parts Stolen . | . . . . . . . . . Parts Stripped . | . . . . . . . . . Power Chain Reactions . | . . . . . . . . . Alert | -11 -10 -9 -9 -9 -8 -8 -7 -6 ------- Run | Yrd Mat Mat Min Exi Min Mat Fac Fac Maximum Alert Level 1 | . . . . . . 1 . . Low Security (%) 99 | 100 100 100 100 . 100 96 100 100 Level 1 . | . . . . . . 3 . . Level 2 . | . . . . . . . . . Level 3 . | . . . . . . . . . Level 4 . | . . . . . . . . . Level 5 . | . . . . . . . . . High Security . | . . . . . . . . . Max Security . | . . . . . . . . . Peak Influence 212 | . 101 106 144 . . 212 81 32 Initial 81 | . . 38 21 . . . 81 32 Average 32 | . 22 43 24 . . 64 25 4 Influence Increases 2309 | . 486 427 192 . . 710 411 83 Destroy 0b10 Robot/C 1300 | . 260 240 120 . . 440 200 40 Destroy 0b10 Robot/NC 220 | . 60 50 5 . . 65 25 15 Destroy Leader 368 | . 78 102 10 . . 104 52 22 Successful Hack 35 | . 10 7 . . . . 12 6 Disable Machine 75 | . . . 30 . . 45 . . Destroy Structure 71 | . 3 13 27 . . 26 2 . Partial Spotted 60 | . . 15 . . . . 45 . Lose Combat Pursuer 180 | . 75 . . . . 30 75 . Influence Decreases 2309 | . 394 463 152 96 . 529 526 149 Entered New Map 319 | . . 54 35 96 . . 100 34 Time Decay 1782 | . 374 392 117 . . 459 345 95 Lost Part 208 | . 20 17 . . . 70 81 20 Squads Dispatched 18 | . 4 1 . . . 5 5 3 Investigation 6 | . 2 1 . . . 1 1 1 Extermination 4 | . . . . . . . 3 1 Reinforcement 8 | . 2 . . . . 4 1 1 Assault . | . . . . . . . . . Garrison . | . . . . . . . . . Intercept . | . . . . . . . . . Searches Triggered . | . . . . . . . . . Construction Impeded 1 | . . . . . . 1 . . Haulers Reinforced . | . . . . . . . . . Active Scanning Responses . | . . . . . . . . . Cargo Convoy Interrupts . | . . . . . . . . . Stealth | -11 -10 -9 -9 -9 -8 -8 -7 -6 --------- Run | Yrd Mat Mat Min Exi Min Mat Fac Fac Distress Signals 12 | . 1 2 . . . 6 2 1 Communications Jammed . | . . . . . . . . . Distress Signals . | . . . . . . . . . Times Spotted 154 | . 24 22 6 . . 35 43 24 Peak Tracking Total 6 | . 3 5 2 . . 4 4 6 Tactical Retreats 29 | . 3 . . . . 1 19 6 ECM-based Alert Blocks 42 | . . . . . . . 25 17 Traps | -11 -10 -9 -9 -9 -8 -8 -7 -6 ------- Run | Yrd Mat Mat Min Exi Min Mat Fac Fac Traps Triggered 12 | . 2 5 2 . . 1 1 1 Indirectly . | . . . . . . . . . Trap Hack Attempts . | . . . . . . . . . Triggered . | . . . . . . . . . Disarmed . | . . . . . . . . . Reprogrammed . | . . . . . . . . . Reused . | . . . . . . . . . Traps Extracted . | . . . . . . . . . Installed . | . . . . . . . . . Triggered . | . . . . . . . . . Machines | -11 -10 -9 -9 -9 -8 -8 -7 -6 ---------- Run | Yrd Mat Mat Min Exi Min Mat Fac Fac Machines Disabled 5 | . . . 2 . . 3 . . Max in Single Turn 2 | . . . 2 . . 1 . . Machines Repaired . | . . . . . . . . . Machines Dismantled . | . . . . . . . . . Machines Sabotaged . | . . . . . . . . . Overloaded Fab Kills . | . . . . . . . . . Hacking | -11 -10 -9 -9 -9 -8 -8 -7 -6 --------- Run | Yrd Mat Mat Min Exi Min Mat Fac Fac Machines Accessed 18 | . 6 4 1 . . 2 2 3 Terminals 11 | . 5 3 . . . . 2 1 Fabricators 1 | . . . . . . . . 1 Repair Stations . | . . . . . . . . . Recycling Units 3 | . 1 . . . . 1 . 1 Scanalyzers 2 | . . 1 . . . 1 . . Garrison Access . | . . . . . . . . . Total Hacks 47 | . 15 17 1 . . 4 4 6 Successful 15 | . 3 5 1 . . 1 1 4 Failed 30 | . 12 11 . . . 2 3 2 Catastrophic 8 | . 1 5 . . . 1 1 . Database Lockouts 2 | . . 1 . . . 1 . . Manual 27 | . 9 11 . 1 . . 4 2 Terminals 27 | . 10 11 . . . . 4 2 Fabricators 2 | . . . . . . . . 2 Repair Stations . | . . . . . . . . . Recycling Units 9 | . 5 . . . . 2 . 2 Scanalyzers 8 | . . 6 . . . 2 . . Garrison Access . | . . . . . . . . . Terminal Hacks 6 | . 2 1 1 . . . 1 1 Part Schematic 1 | . . . . . . . . 1 Open Door 1 | . . . 1 . . . . . Locate Traps 2 | . . 1 . . . . 1 . Zone Layout 2 | . 2 . . . . . . . Fabricator Hacks 2 | . . . . . . . . 2 Load Schematic 1 | . . . . . . . . 1 Build 1 | . . . . . . . . 1 Repair Station Hacks . | . . . . . . . . . Recycling Unit Hacks 2 | . 1 . . . . . . 1 Retrieve Components 2 | . 1 . . . . . . 1 Scanalyzer 5 | . . 4 . . . 1 . . Retrieve Study 5 | . . 4 . . . 1 . . Garrison Access Hacks . | . . . . . . . . . Unauthorized Hacks . | . . . . . . . . . Terminals . | . . . . . . . . . Fabricators . | . . . . . . . . . Repair Stations . | . . . . . . . . . Recycling Units . | . . . . . . . . . Scanalyzers . | . . . . . . . . . Garrison Access . | . . . . . . . . . Data Cores Recovered . | . . . . . . . . . Used . | . . . . . . . . . Hacking Detections 13 | . 5 3 . . . 1 2 2 Full Trace Events 7 | . 2 2 . . . 1 1 1 Feedback Events . | . . . . . . . . . Feedback Blocked . | . . . . . . . . . Robot Schematics Acquired . | . . . . . . . . . Robots Built . | . . . . . . . . . Authchips . | . . . . . . . . . Time . | . . . . . . . . . Total Robot Build Rating . | . . . . . . . . . Part Schematics Acquired 1 | . . . . . . . . 1 Parts Built 2 | . . . . . . . . 2 Authchips . | . . . . . . . . . Time 62 | . . . . . . . . 62 Total Part Build Rating 4 | . . . . . . . . 4 Part Studies Acquired 5 | . . 4 . . . 1 . . Parts Repaired . | . . . . . . . . . Time . | . . . . . . . . . Parts Recycled . | . . . . . . . . . Recycled Matter . | . . . . . . . . . Retrieved Matter . | . . . . . . . . . Retrieved Components . | . . . . . . . . . Parts Scanalyzed . | . . . . . . . . . Part Schematics Acquired . | . . . . . . . . . Parts Damaged . | . . . . . . . . . Bothacking | -11 -10 -9 -9 -9 -8 -8 -7 -6 ------------ Run | Yrd Mat Mat Min Exi Min Mat Fac Fac Used RIF Installer . | . . . . . . . . . Robots Hacked . | . . . . . . . . . Non-combat . | . . . . . . . . . Combat . | . . . . . . . . . Robot Hacks Applied . | . . . . . . . . . Relay Couplers Released . | . . . . . . . . . Fabnet Peak Effective % . | . . . . . . . . . Robots Rewired . | . . . . . . . . . Allies Hacked . | . . . . . . . . . Hacks Repelled . | . . . . . . . . . Allies | -11 -10 -9 -9 -9 -8 -8 -7 -6 -------- Run | Yrd Mat Mat Min Exi Min Mat Fac Fac Total Allies 1 | . . . 1 . . . . . Largest Group 1 | . . . 1 1 . . . . Highest-Rated Group 31 | . . . 31 31 . . . . Highest-Rated Ally 31 | . . . 31 31 . . . . Total Orders . | . . . . . . . . . Ally Attacks . | . . . . . . . . . Total Damage . | . . . . . . . . . Kills . | . . . . . . . . . Allies Corrupted . | . . . . . . . . . Allies Melted . | . . . . . . . . . Intel | -11 -10 -9 -9 -9 -8 -8 -7 -6 ------- Run | Yrd Mat Mat Min Exi Min Mat Fac Fac Active Infowar (turns) 6803 | . 1196 1451 756 374 335 1178 833 680 Optics 5290 | . 1196 1451 756 374 335 1178 . . Seismic 832 | . . . . . . . 832 . ECM 1203 | . . . . . . . 523 680 Robot Analysis Total . | . . . . . . . . . Derelict Logs Recovered 2 | . . . 2 . . . . . Drone Launches . | . . . . . . . . . Drone Recoveries . | . . . . . . . . . Exploration | -11 -10 -9 -9 -9 -8 -8 -7 -6 ------------- Run | Yrd Mat Mat Min Exi Min Mat Fac Fac Turns Passed 8443 | 75 1735 1451 756 374 335 1609 1410 698 Spaces Moved 5321 | 43 917 725 443 225 201 672 1454 641 Core 135 | 7 1 . . . . 12 48 67 Treads 3014 | 36 916 725 443 225 201 468 . . Legs 7 | . . . . . . . . 7 Wheels 226 | . . . . . . 192 34 . Hover 624 | . . . . . . . 57 567 Flight 1315 | . . . . . . . 1315 . Fastest Speed 23 | 50 160 160 160 160 160 100 23 50 Average Speed 119 | 143 160 160 160 160 160 167 51 65 Slowest Speed 700 | 160 500 160 160 160 160 700 355 150 Overloaded Moves . | . . . . . . . . . Propulsion Burnouts . | . . . . . . . . . Robots Hopped . | . . . . . . . . . Potential Cave-ins . | . . . . . . . . . Cave-ins Triggered 1 | . . . . . . 1 . . Exploration Rate (%) 46 | 3 95 46 94 43 50 47 18 18 Regions Visited 8 Branch Regions 3 Pre-discovered Areas 1 | . . . 1 . . . . . Known Exits Taken 1 | . . . . . . 1 . . Unknown Exits Taken 7 | 1 1 1 1 1 1 . 1 . Scrap Searched 4 | . . . 3 . 1 . . . Spaces Dug . | . . . . . . . . . Terrain Destroyed 68 | . . 12 27 . . 27 2 . Melee . | . . . . . . . . . Projectile 44 | . . 12 3 . . 27 2 . AOE 24 | . . . 24 . . . . . Terrain Rammed . | . . . . . . . . . Walls Destroyed . | . . . . . . . . . Machines Disabled . | . . . . . . . . . Actions | -11 -10 -9 -9 -9 -8 -8 -7 -6 --------- Run | Yrd Mat Mat Min Exi Min Mat Fac Fac Total 6751 | 54 1049 886 470 240 215 949 2004 884 Wait 775 | . 26 21 13 . 13 89 415 198 Move 5313 | 42 916 724 442 224 200 671 1453 641 Hop . | . . . . . . . . . Pick Up 48 | 6 12 16 . 2 1 5 5 1 Fast Attach 60 | 6 5 7 1 5 . 15 15 6 Attach 17 | . 3 1 . . . 3 9 1 Detach 8 | . . 1 . . . 1 5 1 Swap 27 | . 5 15 1 1 . 4 1 . Drop 78 | . 7 27 2 8 1 16 15 2 Fire 321 | . 74 72 11 . . 139 25 . Melee 73 | . . . . . . 3 49 21 Ram . | . . . . . . . . . Kick . | . . . . . . . . . Crush 6 | . 1 2 . . . 3 . . Escape Stasis 25 | . . . . . . . 12 13 Rewire . | . . . . . . . . . Trap . | . . . . . . . . . Miscellaneous . | . . . . . . . . . Route ------- -11/Scrapyard -10/Materials (discovered 4 exits: *Mat x3 / [*Min]) -9/Materials (discovered 2 exits: *Mat / *Min) -9/Mines (discovered 3 exits: *Mat x2 / *Exi) -9/Exiles -8/Mines -8/Materials -7/Factory -6/Factory History --------- Turn | Location | Event 18 | -11/Scrapyard | Discovered new exit (range 15) 76 | -11/Scrapyard | Entered Materials 220 | -10/Materials | Discovered new exit (range 5) 301 | -10/Materials | Build established: Mutant 363 | -10/Materials | Discovered new exit (range 13) 580 | -10/Materials | Discovered new exit (range 13) 807 | -10/Materials | Discovered new exit (range 14) 1178 | -10/Materials | Core integrity fell below 50% 1811 | -10/Materials | Entered another Materials area 1811 | -9/Materials | Evolved 2 slots: Propulsion x1, Utility x1 1822 | -9/Materials | Central database locked down 2406 | -9/Materials | Build established: Scavenger-Mutant 2758 | -9/Materials | Discovered new exit (range 15) 3113 | -9/Materials | Discovered new exit (range 8) 3159 | -9/Materials | Core integrity fell below 50% 3262 | -9/Materials | Entered Mines 3294 | -9/Mines | Discovered new exit (range 13) 3324 | -9/Mines | Met a Derelict bent on vengeance 3394 | -9/Mines | Learned location of 1 exit from Materials 3422 | -9/Mines | Build established: Mutant 3437 | -9/Mines | Discovered new exit (range 7) 3640 | -9/Mines | Met a Derelict who couldn't figure out how to use a Trap Extractor 3986 | -9/Mines | Received a Mining Laser from a helpful Derelict 4010 | -9/Mines | Deemed a non-threat by the Exiles lab entrance 4012 | -9/Mines | Discovered new exit (range 5) 4018 | -9/Mines | Entered Exiles 4018 | -9/Exiles | Accompanied by 1 ally 4039 | -9/Exiles | Discovered new exit (range 15) 4058 | -9/Exiles | Met 8R-AWN 4081 | -9/Exiles | Met EX-HEX 4132 | -9/Exiles | Met EX-BIN 4151 | -9/Exiles | Aligned with FarCom system 4153 | -9/Exiles | Given EX-Vault access code 4190 | -9/Exiles | Opened EX-Vault 4195 | -9/Exiles | Found Prototype Special Weapon 4195 | -9/Exiles | Identified Field Lobotomy Kit 4199 | -9/Exiles | Found Prototype Energy Cannon 4199 | -9/Exiles | Identified YOLO Cannon 4206 | -9/Exiles | Found Prototype Energy Cannon 4206 | -9/Exiles | Identified Gui. Plasma Cannon 4269 | -9/Exiles | Warned to stay clear of 0b10 Research branches 4392 | -9/Exiles | Stole two prototypes: YOLO Cannon, Field Lobotomy Kit 4392 | -9/Exiles | Entered Mines 4717 | -8/Mines | Discovered new exit (range 3) 4727 | -8/Mines | Entered Materials 4727 | -8/Materials | Evolved 2 slots: Propulsion x1, Utility x1 4728 | -8/Materials | Identified exit to Factory 5919 | -8/Materials | Core integrity fell below 50% 6078 | -8/Materials | Central database locked down 6109 | -8/Materials | Crushed by falling debris 6336 | -8/Materials | Entered Factory 6336 | -7/Factory | Evolved 2 slots: Propulsion x1, Utility x1 6338 | -7/Factory | FarCom data flow suspended 7033 | -7/Factory | Build established: Sprinter 7549 | -7/Factory | Lost 3 parts (1p2n) 7618 | -7/Factory | Discovered new exit (range 11) 7625 | -7/Factory | Lost 3 parts (1p2n) 7740 | -7/Factory | Core integrity fell below 50% 7746 | -7/Factory | Entered another Factory area 7746 | -6/Factory | Evolved 2 slots: Power x1, Utility x1 7979 | -6/Factory | Build established: Mutant 8178 | -6/Factory | Fabricated VTOL Module? 8444 | -6/Factory | Self-destructed Last Messages --------------- 08162_ U-05 Engineer works on Subcomponent Replicator. 08166_ K-01 Serf collects debris. 08166_ U-05 Engineer works on Subcomponent Replicator. 08170_ K-01 Serf collects debris. 08171_ U-05 Engineer works on Subcomponent Replicator. 08173_ K-01 Serf collects debris. 08175_ Connecting with Recycling Unit... 08175_ U-05 Engineer works on Subcomponent Replicator. 08177_ U-05 Engineer completes Subcomponent Replicator. 08178_ >> FABRICATOR: Completed VTOL Module? 08185_ K-01 Serf collects debris. 08345_ Sneak attack on G-67 Veteran. 08346_ Lgt. Deuterium Engine destroyed. 08347_ G-67 Veteran suffers critical hit (Impale). 08351_ G-67 Veteran destroyed. 08355_ Acquired Flexi-carbon Leg. 08372_ K-01 Serf cleans the Subcomponent Replicator. 08375_ Flexi-carbon Leg destroyed. 08436_ Dropped Spear. 08442_ W-25 Informer sends out distress signal. Map ----- +----------------------------------------------------+ | ??????????????# # """ %+ " " #??# | | ??????????????# # """ # #??## | | ??????????????# # # #???? | | ??????????????# # # ### | | ??????????????# ######## " | | ??????????????# #??????# ! ### | | ??????????????# ######## "" #???? | | ??????????????# + "" #???? | | ??????????????+ ######### """ #???? | | ??????????????#########+####???????# """ #???? | | ??????????????# [= #????????# """ #???? | | ??????????????# [! ! ####?????# #???? | | ??????????????# = + ????? #???? | | ??????????????# ## #????######### #???? | | ??????????????# ""T"" ## #??????##????? #???? | | ??????????????# """"" ## #???? """????? #???? | | ??????????????# ## #?? """????? #???? | | ????????# #####+######## # """ ??? #???? | | ????????# + # ????? | | ????????????####### ###### # #??????? | | ??????????????????# ######+############????????? | | ??????????????????# /k #?????????????? | | ??????????????????# # #?????????????? | | ??????????????????# # ###???????????? | | ??????????????????+ + u k kwk ??????? | | ??????????????????# # @ ######????????? | | ??????????????????# # #?????????????? | | ??????????????????+ + #?????????????? | | ??????????????????##### #?????????????? | | ??????????????????????# #?????????????? | | ??????????????????????# #?????????????? | | ??????????????????????# A #?????????????? | | ??????????????????????# #?????????????? | | ??????????????????????#######k####+#?????????????? | | ?????????????????????????????u ??????????????????? | | ?????????????????????????????u ??????????????????? | | ????????????????????????????? ?????????????????? | | ????????????????????????????? ?????????????????? | | ?????????????????????????????? #????????????????? | | ?????????????????????????????????????????????????? | | ?????????????????????????????????????????????????? | | ?????????????????????????????????????????????????? | | ?????????????????????????????????????????????????? | | ?????????????????????????????????????????????????? | | ?????????????????????????????????????????????????? | | ?????????????????????????????????????????????????? | | ?????????????????????????????????????????????????? | | ?????????????????????????????????????????????????? | | ?????????????????????????????????????????????????? | | ?????????????????????????????????????????????????? | +----------------------------------------------------+ Best States ------------- Heat Dissipation 48 Energy Generation 16 Energy Capacity 290 Matter Stores 300 Matter Capacity 300 Sight Range 18 Terrain Scan Density 210 ECM Strength 1 Armor Coverage 225 Evasion (%) 73 Targeting Accuracy 8 Core Analysis 6 Recoil Reduction 4 Offensive Hacking 20 Item Schematics ----------------- VTOL Module | -6/Factory | Hacked Robot Schematics ------------------ None Fabricated ------------ VTOL Module | x2 | -6/Factory Repaired ---------- Nothing Studied --------- Lgt. Treads | -9/Materials | Hacked Flight Unit | -9/Materials | Hacked Ion Engine | -9/Materials | Hacked Grenade Launcher | -9/Materials | Hacked Lgt. Nuclear Core | -8/Materials | Hacked Alien Tech Used ----------------- None Achievements -------------- None Challenges ------------ None Game ------ Seed SensorTitaniumDesublimator Manual? 0 Play Time 01:23:56 Cumulative 20.2 hours Start 2026.07.16 @ 12:27:48 End 2026.07.16 @ 13:54:22 Sessions 1 Manual Loads 0 Difficulty Rogue Special Mode None Game No. 19 Rogue 16 Adventurer 3 Explorer 0 Win Type - Total 0 Types 0/0/0/0/0/0/0/0/0/0 Lore% 10 Gallery% 23 Achievement% 19 Wizard Run 0 Options --------- Layout 0 ASCII 0 Keyboard 0 Movement Numpad Keybinds 0 Fullscreen 1 Font 18/SmallcapsGlow Map View 76x50 Zoom Use 0% Tactical HUD 1 Map Filters NONE Filters NONE Steam 1 RUN: 9e2c603c-c58d-4f73-b18a-364ec4c5a5e2